lending/lending_fUSD_20260102
["ID","MTS","AMOUNT","RATE_DAILY","PERIOD"]
[400314947,1767355872461,-247.0,0.00027064,7]
[400314948,1767355872470,-160841.43,0.000271,7]
[400314949,1767355872480,-3671.59,0.00027123,2]
[400314950,1767355872490,-1197.0,0.00027137,2]
[400314951,1767355872499,-433.63,0.000272,7]
[400314952,1767355872509,-152.0,0.00027245,8]
[400314953,1767355872518,-1222.64,0.00027288,2]
[400314954,1767355872528,-1222.64,0.00027288,2]
[400314955,1767355872537,-172.36,0.00027306,7]
[400314956,1767355872547,-150.0,0.00027369,2]
[400314957,1767355872557,-447.3913417,0.0002738,2]
[400314958,1767355872566,-4093.5456793,0.0002739,2]
[400314959,1767355872576,-8086.7589843,0.0002739,2]
[400314960,1767355872585,-4388.15367708,0.0002739,7]
[400314961,1767355872595,-201.93286099,0.00027396,2]
[400314962,1767355872604,-441.6,0.00027397,3]
[400314963,1767355872615,-489.0,0.00027397,5]
[400314964,1767355872626,-318.4,0.00027397,3]
[400314965,1767355872635,-378.2,0.00027397,7]
[400314966,1767355872645,-315.2,0.00027397,5]
[400314967,1767355872655,-343.0,0.00027397,3]
[400314968,1767355872664,-456.8,0.00027397,6]
[400314969,1767355872673,-323.2,0.00027397,2]
[400314970,1767355872683,-355.6,0.00027397,2]
[400314971,1767355872693,-306.4,0.00027397,3]
[400314972,1767355872702,-303.4,0.00027397,2]
[400314973,1767355872711,-415.0,0.00027397,4]
[400314974,1767355872720,-303.4,0.00027397,7]
[400314975,1767355872730,-327.91099138,0.00027397,3]
[400314976,1767355872740,-648.48632414,0.00027397,33]
[400314977,1767355872749,-368.6,0.00027397,6]
[400314978,1767355872759,-498.2,0.00027397,6]
[400314979,1767355872768,-430.2,0.00027397,6]
[400314980,1767355872777,-440.6,0.00027397,3]
[400314981,1767355872787,-435.2,0.00027397,5]
[400314982,1767355872796,-460.4,0.00027397,5]
[400314983,1767355872806,-301.2,0.00027397,3]
[400314984,1767355872816,-365.8,0.00027397,5]
[400314985,1767355872825,-308.8,0.00027397,5]
[400314986,1767355872834,-1357.32,0.00027397,2]
[400314987,1767355872844,-1357.32,0.00027397,2]
[400314988,1767355872854,-1357.32,0.00027397,2]
[400314989,1767355872862,-1357.32,0.00027397,2]
[400314990,1767355872873,-1357.32,0.00027397,2]
[400314991,1767355872882,-1357.32,0.00027397,2]
[400314992,1767355872891,-1357.32,0.00027397,2]
[400314993,1767355872901,-1357.32,0.00027397,2]
[400314994,1767355872911,-1357.32,0.00027397,2]
[400314995,1767355872920,-1357.32,0.00027397,2]
[400314996,1767355872929,-1357.32,0.00027397,2]
[400314997,1767355872938,-1357.32,0.00027397,2]
[400314998,1767355872947,-1357.32,0.00027397,2]
[400314999,1767355872957,-1357.32,0.00027397,2]
[400315000,1767355872967,-1357.32,0.00027397,2]
[400315001,1767355872976,-1357.32,0.00027397,2]
[400315002,1767355872986,-1357.32,0.00027397,2]
[400315003,1767355872997,-1357.32,0.00027397,2]
[400315004,1767355873009,-1357.32,0.00027397,2]
[400315005,1767355873018,-1357.32,0.00027397,2]
[400315006,1767355873028,-1357.32,0.00027397,2]
[400315007,1767355873199,-1357.32,0.00027397,2]
[400315008,1767355873211,-1357.32,0.00027397,2]
[400315009,1767355873221,-1357.52434418,0.00027397,2]
[400315010,1767355873231,-500.0,0.00027397,10]
[400315011,1767355873241,-500.0,0.00027397,10]
[400315012,1767355873251,-500.0,0.00027397,10]
[400315013,1767355873262,-500.0,0.00027397,10]
[400315014,1767355873272,-500.0,0.00027397,10]
[400315015,1767355873283,-500.0,0.00027397,10]
[400315016,1767355873293,-500.0,0.00027397,10]
[400315017,1767355873303,-500.0,0.00027397,10]
[400315018,1767355873312,-500.0,0.00027397,10]
[400315019,1767355873321,-500.0,0.00027397,10]
[400315020,1767355873331,-500.0,0.00027397,10]
[400315021,1767355873340,-500.0,0.00027397,10]
[400315022,1767355873350,-500.0,0.00027397,10]
[400315023,1767355873359,-500.0,0.00027397,10]
[400315024,1767355873368,-500.0,0.00027397,10]
[400315025,1767355873378,-493.90373043,0.00027397,10]
[400315026,1767355873387,-202.61813708,0.00027397,7]
[400315027,1767355873398,-150.0,0.00027397,7]
[400315028,1767355873408,-517.19,0.00027397,2]
[400315029,1767355873418,-500.0,0.00027397,20]
[400315030,1767355873427,-1441.23,0.00027397,2]
[400315031,1767355873438,-300.0,0.00027397,2]
[400315032,1767355873447,-39745.67,0.00027397,2]
[400315033,1767355873457,-218.33,0.00027397,30]
[400315034,1767355873466,-151.0,0.00027397,7]
[400315035,1767355873475,-151.0,0.00027397,7]
[400315036,1767355873484,-151.0,0.00027397,7]
[400315037,1767355873494,-151.0,0.00027397,7]
[400315038,1767355873503,-151.0,0.00027397,7]
[400315039,1767355873513,-151.0,0.00027397,7]
[400315040,1767355873522,-151.0,0.00027397,7]
[400315041,1767355873532,-151.0,0.00027397,7]
[400315042,1767355873542,-151.0,0.00027397,7]
[400315043,1767355873551,-151.0,0.00027397,7]
[400315044,1767355873561,-151.0,0.00027397,7]
[400315045,1767355873571,-151.0,0.00027397,7]
[400315046,1767355873581,-151.0,0.00027397,7]
[400315047,1767355873592,-226.648435,0.00027397,7]
[400315048,1767355873602,-1558.61,0.00027397,2]
[400315049,1767355873612,-300.0,0.00027397,5]
[400315050,1767355873623,-158.6482963,0.00027397,5]
[400315051,1767355873634,-500.0,0.00027397,5]
[400315052,1767355873644,-1222.64,0.00027479,2]
[400315053,1767355873654,-1222.64,0.00027479,2]
[400315054,1767355873664,-1222.64,0.00027479,2]
[400315055,1767355873674,-1222.64,0.00027479,2]
[400315056,1767355873683,-1906.19,0.00027479,2]
[400315057,1767355873693,-200.31117699,0.000275,2]
[400315058,1767355873703,-547.20458049,0.000275,2]
[400315059,1767355873713,-2000.0,0.000275,15]
[400315060,1767355873723,-854.23,0.000275,7]
[400315061,1767355873732,-2000.0,0.000275,2]
[400315062,1767355873741,-1000.0,0.000275,2]
[400315063,1767355873751,-152.0,0.00027649,9]
[400315064,1767355873761,-1197.0,0.00027671,2]
[400315065,1767355873770,-1148.16944347,0.00027671,7]
[400315066,1767355873780,-5134.15,0.00027671,2]
[400315067,1767355873789,-429.552,0.00027916,2]
[400315068,1767355873798,-71026.88155501,0.00028,2]
[400315069,1767355873807,-50647.58825693,0.00028,2]
[400315070,1767355873818,-6159.83099189,0.00028,2]
[400315071,1767355873828,-4999.0,0.00028,2]
[400315072,1767355873837,-262.59211813,0.00028046,110]
[400315073,1767355873847,-152.0,0.00028052,10]
[400315074,1767355873856,-1197.0,0.00028205,3]
[400315075,1767355873866,-600.0,0.00028219,5]
[400315076,1767355873875,-160841.43,0.000283,7]
[400315077,1767355873884,-1222.64,0.00028301,2]
[400315078,1767355873894,-1222.64,0.00028301,2]
[400315079,1767355873903,-1222.64,0.00028301,2]
[400315080,1767355873913,-1222.64,0.00028301,2]
[400315081,1767355873923,-1222.64,0.00028301,2]
[400315082,1767355873933,-1222.64,0.00028301,2]
[400315083,1767355873943,-1222.64,0.00028301,2]
[400315084,1767355873952,-239.84119403,0.00028335,2]
[400315085,1767355873962,-152.0,0.00028455,11]
[400315086,1767355873972,-500.0,0.00028493,2]
[400315087,1767355873981,-151.0,0.000285,2]
[400315088,1767355873991,-151.0,0.000285,7]
[400315089,1767355874002,-1197.0,0.00028739,3]
[400315090,1767355874012,-463.94482134,0.00028749,2]
[400315091,1767355874022,-247.0,0.00028756,14]
[400315092,1767355874031,-209.40437684,0.00028765,2]
[400315093,1767355874041,-152.0,0.00028858,12]
[400315094,1767355874051,-247.0,0.00028997,14]
[400315095,1767355874060,-550.0,0.00029,2]
[400315096,1767355874070,-900.0,0.00029041,5]
[400315097,1767355874080,-1037.57632201,0.000291,2]
[400315098,1767355874089,-349.83087352,0.0002913,5]
[400315099,1767355874098,-433.63,0.000292,7]
[400315100,1767355874108,-152.0,0.00029261,13]
[400315101,1767355874117,-1197.0,0.00029273,4]
[400315102,1767355874127,-13218.8036897,0.000295,7]
[400315103,1767355874136,-160841.43,0.000296,7]
[400315104,1767355874146,-152.0,0.00029665,14]
[400315105,1767355874156,-1197.0,0.00029807,4]
[400315106,1767355874165,-1200.0,0.00029863,5]
[400315107,1767355874174,-78595.00707098,0.000299,2]
[400315108,1767355874184,-165.81067044,0.000299,2]
[400315109,1767355874194,-172.36,0.00029959,30]
[400315110,1767355874203,-236.32089819,0.0002999,2]
[400315111,1767355874214,-4699.19346414,0.0003,2]
[400315112,1767355874223,-19795.87685355,0.0003,2]
[400315113,1767355874232,-4135.3992403,0.0003,2]
[400315114,1767355874242,-1810.05466292,0.0003,2]
[400315115,1767355874251,-439.45581015,0.0003,2]
[400315116,1767355874261,-162.35882764,0.0003,2]
[400315117,1767355874270,-151.75967222,0.0003,2]
[400315118,1767355874280,-818.75457,0.0003,2]
[400315119,1767355874290,-7485.0021171,0.0003,2]
[400315120,1767355874300,-815.95617215,0.0003,5]
[400315121,1767355874309,-250.0,0.0003,7]
[400315122,1767355874318,-163.78495232,0.0003,30]
[400315123,1767355874327,-260.20856668,0.0003,21]
[400315124,1767355874336,-161.42291777,0.0003,10]
[400315125,1767355874345,-10000.0,0.0003,10]
[400315126,1767355874355,-18152.25165904,0.0003,30]
[400315127,1767355874363,-1000.0,0.0003,3]
[400315128,1767355874373,-150.0,0.0003,2]
[400315129,1767355874382,-10000.0,0.0003,30]
[400315130,1767355874391,-2022.24129671,0.0003,2]
[400315131,1767355874401,-2627.0,0.0003,2]
[400315132,1767355874411,-152.0,0.00030068,15]
[400315133,1767355874420,-1037.0,0.000301,7]
[400315134,1767355874429,-481.11077973,0.00030118,2]
[400315135,1767355874439,-2000.0,0.00030129,30]
[400315136,1767355874448,-1069.20782312,0.0003013,2]
[400315137,1767355874457,-13795.93841286,0.0003013,2]
[400315138,1767355874467,-631.4284748,0.0003013,2]
[400315139,1767355874477,-5038.49351394,0.0003013,2]
[400315140,1767355874486,-200.87313221,0.0003013,2]
[400315141,1767355874495,-1219.41420189,0.0003013,2]
[400315142,1767355874505,-7700.31425518,0.0003013,2]
[400315143,1767355874514,-1502.63363095,0.0003013,5]
[400315144,1767355874524,-200.0,0.0003013,2]
[400315145,1767355874534,-200.0,0.0003013,2]
[400315146,1767355874544,-217.15233878,0.00030134,2]
[400315147,1767355874554,-151.0,0.00030136,2]
[400315148,1767355874563,-151.0,0.00030136,2]
[400315149,1767355874573,-207.63945783,0.00030136,14]
[400315150,1767355874582,-1558.61,0.00030137,2]
[400315151,1767355874591,-167.16,0.00030137,7]
[400315152,1767355874601,-519.0,0.00030137,120]
[400315153,1767355874611,-12168.81337465,0.000302,2]
[400315154,1767355874620,-335.44,0.000302,30]
[400315155,1767355874632,-1197.0,0.00030341,5]
[400315156,1767355874642,-200.0,0.00030431,2]
[400315157,1767355874651,-200.0,0.00030431,2]
[400315158,1767355874661,-247.0,0.00030447,14]
[400315159,1767355874671,-170.0,0.00030447,14]
[400315160,1767355874680,-152.0,0.00030471,16]
[400315161,1767355874689,-1500.0,0.00030685,5]
[400315162,1767355874698,-200.0,0.00030736,2]
[400315163,1767355874708,-200.0,0.00030736,2]
[400315164,1767355874717,-433.63,0.000308,7]
[400315165,1767355874727,-335.44,0.000308,30]
[400315166,1767355874736,-2600.95577867,0.0003084,2]
[400315167,1767355874747,-206.0,0.0003084,30]
[400315168,1767355874756,-236.68312695,0.00030859,6]
[400315169,1767355874765,-152.0,0.00030874,17]
[400315170,1767355874775,-1197.0,0.00030875,6]
[400315171,1767355874785,-160841.43,0.000309,7]
[400315172,1767355874794,-78690.33379746,0.0003095,2]
[400315173,1767355874804,-341.24821763,0.00031,5]
[400315174,1767355874813,-162.0,0.00031,5]
[400315175,1767355874822,-150.0,0.00031,4]
[400315176,1767355874832,-600.0,0.00031,2]
[400315177,1767355874841,-189.21797214,0.00031,120]
[400315178,1767355874851,-240.31590674,0.00031,120]
[400315179,1767355874860,-200.0,0.00031043,2]
[400315180,1767355874869,-200.0,0.00031043,2]
[400315181,1767355874879,-248.71531821,0.00031074,2]
[400315182,1767355874888,-2000.0,0.000312,2]
[400315183,1767355874897,-152.0,0.00031277,18]
[400315184,1767355874907,-335.44,0.000313,30]
[400315185,1767355874917,-200.0,0.00031353,2]
[400315186,1767355874926,-200.0,0.00031353,2]
[400315187,1767355874935,-1061.88706798,0.000314,30]
[400315188,1767355874945,-1197.0,0.00031409,6]
[400315189,1767355874954,-19625.97625351,0.0003143,4]
[400315190,1767355874963,-498.91187858,0.00031487,2]
[400315191,1767355874973,-196.52995544,0.000315,2]
[400315192,1767355874982,-150.0,0.000315,2]
[400315193,1767355874992,-840.24587782,0.000315,120]
[400315194,1767355875004,-225.18697532,0.00031503,2]
[400315195,1767355875014,-183.66,0.00031507,120]
[400315196,1767355875023,-1301.0752184,0.00031507,5]
[400315197,1767355875034,-152.0,0.00031681,19]
[400315198,1767355875045,-218.33,0.00031723,30]
[400315199,1767355875055,-335.44,0.000318,30]
[400315200,1767355875064,-433.63,0.000319,7]
[400315201,1767355875074,-160841.43,0.000319,7]
[400315202,1767355875083,-1197.0,0.00031943,7]
[400315203,1767355875092,-151.0,0.00032,7]
[400315204,1767355875102,-987.81338719,0.00032,120]
[400315205,1767355875111,-1000.0,0.00032,12]
[400315206,1767355875120,-200.0,0.00032,6]
[400315207,1767355875130,-1313.0,0.00032,2]
[400315208,1767355875139,-152.0,0.00032084,20]
[400315209,1767355875148,-500.0,0.0003216,2]
[400315210,1767355875157,-890.27720151,0.000323,2]
[400315211,1767355875166,-335.44,0.000323,30]
[400315212,1767355875176,-1197.0,0.00032477,7]
[400315213,1767355875185,-5877.79724246,0.0003248,2]
[400315214,1767355875194,-152.0,0.00032487,21]
[400315215,1767355875204,-151.0,0.000325,14]
[400315216,1767355875212,-172.36,0.00032612,30]
[400315217,1767355875222,-1062.71658088,0.00032733,7]
[400315218,1767355875231,-4808.53918172,0.000328,2]
[400315219,1767355875240,-517.37161808,0.00032856,2]
[400315220,1767355875250,-206.0,0.0003286,30]
[400315221,1767355875259,-233.51889341,0.00032872,2]
[400315222,1767355875268,-387.86835831,0.00032876,2]
[400315223,1767355875277,-392.17696418,0.00032876,2]
[400315224,1767355875286,-437.11996226,0.00032876,2]
[400315225,1767355875296,-431.04172834,0.00032876,2]
[400315226,1767355875305,-376.68849834,0.00032876,2]
[400315227,1767355875314,-435.69224417,0.00032876,2]
[400315228,1767355875324,-549.02398558,0.00032876,2]
[400315229,1767355875334,-500.0,0.00032876,2]
[400315230,1767355875343,-500.0,0.00032876,2]
[400315231,1767355875353,-204.75381555,0.00032876,2]
[400315232,1767355875362,-500.0,0.00032876,2]
[400315233,1767355875371,-500.0,0.00032876,2]
[400315234,1767355875380,-500.0,0.00032876,2]
[400315235,1767355875389,-500.0,0.00032876,2]
[400315236,1767355875399,-500.0,0.00032876,2]
[400315237,1767355875409,-500.0,0.00032876,2]
[400315238,1767355875420,-151.0,0.00032877,2]
[400315239,1767355875428,-343.26,0.00032877,2]
[400315240,1767355875438,-151.0,0.00032877,31]
[400315241,1767355875447,-151.0,0.00032877,31]
[400315242,1767355875456,-151.0,0.00032877,31]
[400315243,1767355875466,-151.0,0.00032877,31]
[400315244,1767355875477,-151.0,0.00032877,31]
[400315245,1767355875487,-151.0,0.00032877,31]
[400315246,1767355875497,-151.0,0.00032877,31]
[400315247,1767355875507,-258.775825,0.00032877,31]
[400315248,1767355875517,-1558.61,0.00032877,2]
[400315249,1767355875527,-334.37344925,0.00032877,2]
[400315250,1767355875537,-500.0,0.00032877,2]
[400315251,1767355875546,-500.18968008,0.00032877,2]
[400315252,1767355875555,-150.0,0.00032877,5]
[400315253,1767355875612,-500.0,0.00032877,2]
[400315254,1767355875623,-500.0,0.00032877,2]
[400315255,1767355875633,-500.0,0.00032877,2]
[400315256,1767355875645,-152.0,0.0003289,22]
[400315257,1767355875654,-2582.75,0.000329,14]
[400315258,1767355875664,-1000.0,0.0003294,10]
[400315259,1767355875673,-1000.0,0.0003294,10]
[400315260,1767355875682,-177.724196,0.00033,4]
[400315261,1767355875692,-1907.68128915,0.00033,2]
[400315262,1767355875701,-152.88398718,0.00033,2]
[400315263,1767355875710,-51375.57234505,0.00033,2]
[400315264,1767355875719,-26270.57107022,0.00033,2]
[400315265,1767355875729,-45209.68278616,0.00033,2]
[400315266,1767355875738,-187.2259827,0.00033,30]
[400315267,1767355875748,-570.95,0.00033,14]
[400315268,1767355875757,-650.0,0.00033,2]
[400315269,1767355875766,-554.105794,0.00033,14]
[400315270,1767355875775,-12966.92,0.00033,2]
[400315271,1767355875784,-1197.0,0.00033011,8]
[400315272,1767355875793,-1000.0,0.00033077,10]
[400315273,1767355875802,-1000.0,0.00033077,10]
[400315274,1767355875811,-335.44,0.000331,30]
[400315275,1767355875820,-1000.0,0.00033121,10]
[400315276,1767355875830,-601.83,0.00033165,2]
[400315277,1767355875839,-433.63,0.000332,14]
[400315278,1767355875848,-1000.0,0.00033214,10]
[400315279,1767355875857,-1000.0,0.00033214,10]
[400315280,1767355875867,-152.0,0.00033293,23]
[400315281,1767355875878,-1000.0,0.00033351,10]
[400315282,1767355875887,-1000.0,0.00033351,10]
[400315283,1767355875896,-208.04565492,0.00033425,5]
[400315284,1767355875906,-1000.0,0.00033488,10]
[400315285,1767355875915,-1000.0,0.00033488,10]
[400315286,1767355875925,-1206.15629016,0.000335,2]
[400315287,1767355875935,-1197.0,0.00033545,9]
[400315288,1767355875945,-335.44,0.000336,30]
[400315289,1767355875955,-1000.0,0.00033625,10]
[400315290,1767355875964,-1000.0,0.00033625,10]
[400315291,1767355875973,-152.0,0.00033697,24]
[400315292,1767355875982,-2582.75,0.000337,14]
[400315293,1767355875992,-1270.28,0.000337,30]
[400315294,1767355876003,-1000.0,0.00033762,10]
[400315295,1767355876013,-1000.0,0.00033762,10]
[400315296,1767355876022,-257.91778498,0.00033813,2]
[400315297,1767355876032,-1000.0,0.00033899,10]
[400315298,1767355876043,-1000.0,0.00033899,10]
[400315299,1767355876052,-325.70560888,0.00034,2]
[400315300,1767355876061,-772.09934718,0.00034,7]
[400315301,1767355876070,-160.0,0.00034,6]
[400315302,1767355876081,-160.0,0.00034,6]
[400315303,1767355876090,-302.0,0.00034,6]
[400315304,1767355876100,-1315.0,0.00034,2]
[400315305,1767355876109,-12966.92,0.00034,2]
[400315306,1767355876118,-1000.0,0.00034036,10]
[400315307,1767355876127,-1000.0,0.00034036,10]
[400315308,1767355876137,-1197.0,0.00034079,9]
[400315309,1767355876146,-152.0,0.000341,25]
[400315310,1767355876154,-1000.0,0.00034173,10]
[400315311,1767355876163,-1000.0,0.00034173,10]
[400315312,1767355876172,-536.51436795,0.00034225,2]
[400315313,1767355876182,-242.15909246,0.00034241,2]
[400315314,1767355876191,-151.0,0.00034246,2]
[400315315,1767355876200,-1000.0,0.0003431,10]
[400315316,1767355876209,-1000.0,0.0003431,10]
[400315317,1767355876219,-1000.0,0.00034447,10]
[400315318,1767355876228,-1000.0,0.00034447,10]
[400315319,1767355876238,-1724.14709845,0.0003449,2]
[400315320,1767355876247,-433.0,0.0003449,10]
[400315321,1767355876257,-2582.75,0.000345,14]
[400315322,1767355876266,-152.0,0.00034503,26]
[400315323,1767355876276,-1000.0,0.00034584,10]
[400315324,1767355876285,-1000.0,0.00034584,10]
[400315325,1767355876294,-433.63,0.000346,14]
[400315326,1767355876303,-1197.0,0.00034613,10]
[400315327,1767355876312,-1000.0,0.00034721,10]
[400315328,1767355876322,-1000.0,0.00034721,10]
[400315329,1767355876331,-1000.0,0.00034858,10]
[400315330,1767355876340,-1000.0,0.00034858,10]
[400315331,1767355876350,-360.74538687,0.0003488,120]
[400315332,1767355876359,-206.0,0.0003488,30]
[400315333,1767355876368,-3814.13901998,0.000349,24]
[400315334,1767355876377,-10216.8127113,0.000349,30]
[400315335,1767355876388,-2000.0,0.000349,2]
[400315336,1767355876398,-152.0,0.00034906,27]
[400315337,1767355876408,-1000.0,0.00034995,10]
[400315338,1767355876417,-1000.0,0.00034995,10]
[400315339,1767355876426,-1909.58416527,0.00035,2]
[400315340,1767355876435,-160.69532358,0.00035,2]
[400315341,1767355876446,-250.0,0.00035,7]
[400315342,1767355876455,-238.2,0.00035,2]
[400315343,1767355876465,-160.0,0.00035,11]
[400315344,1767355876474,-160.0,0.00035,11]
[400315345,1767355876483,-160.0,0.00035,11]
[400315346,1767355876493,-160.0,0.00035,11]
[400315347,1767355876502,-160.0,0.00035,11]
[400315348,1767355876512,-160.0,0.00035,11]
[400315349,1767355876521,-160.0,0.00035,11]
[400315350,1767355876530,-160.0,0.00035,11]
[400315351,1767355876539,-160.0,0.00035,11]
[400315352,1767355876549,-160.0,0.00035,11]
[400315353,1767355876558,-160.0,0.00035,11]
[400315354,1767355876568,-207.0,0.00035,11]
[400315355,1767355876579,-570.95,0.00035,14]
[400315356,1767355876590,-700.0,0.00035,2]
[400315357,1767355876599,-97000.0,0.00035,2]
[400315358,1767355876610,-12966.92,0.00035,2]
[400315359,1767355876619,-1007.0,0.00035,12]
[400315360,1767355876629,-2582.75,0.000351,14]
[400315361,1767355876638,-1000.0,0.00035132,10]
[400315362,1767355876648,-1000.0,0.00035132,10]
[400315363,1767355876659,-1197.0,0.00035147,10]
[400315364,1767355876668,-172.36,0.00035265,60]
[400315365,1767355876679,-1000.0,0.00035268,10]
[400315366,1767355876688,-1000.0,0.00035268,10]
[400315367,1767355876697,-152.0,0.00035309,28]
[400315368,1767355876706,-1000.0,0.00035405,10]
[400315369,1767355876716,-1000.0,0.00035405,10]
[400315370,1767355876725,-1000.0,0.00035542,10]
[400315371,1767355876735,-1000.0,0.00035542,10]
[400315372,1767355876745,-1305.53,0.00035555,2]
[400315373,1767355876754,-556.36539957,0.00035594,2]
[400315374,1767355876763,-2582.75,0.000356,14]
[400315375,1767355876773,-251.11897888,0.0003561,2]
[400315376,1767355876783,-157156.27099142,0.0003561,2]
[400315377,1767355876793,-151.0,0.00035615,2]
[400315378,1767355876803,-477.6,0.00035616,18]
[400315379,1767355876812,-567.3,0.00035616,29]
[400315380,1767355876822,-514.5,0.00035616,25]
[400315381,1767355876831,-685.2,0.00035616,24]
[400315382,1767355876841,-484.8,0.00035616,28]
[400315383,1767355876850,-455.1,0.00035616,18]
[400315384,1767355876860,-552.9,0.00035616,22]
[400315385,1767355876870,-486.3647431,0.00035616,70]
[400315386,1767355876879,-747.3,0.00035616,31]
[400315387,1767355876889,-645.3,0.00035616,16]
[400315388,1767355876899,-660.9,0.00035616,27]
[400315389,1767355876908,-652.8,0.00035616,44]
[400315390,1767355876919,-690.6,0.00035616,24]
[400315391,1767355876928,-451.8,0.00035616,41]
[400315392,1767355876938,-548.7,0.00035616,40]
[400315393,1767355876948,-186.88318965,0.00035616,24]
[400315394,1767355876957,-463.2,0.00035616,31]
[400315395,1767355876967,-151.0,0.00035616,31]
[400315396,1767355876977,-151.0,0.00035616,31]
[400315397,1767355876986,-151.0,0.00035616,31]
[400315398,1767355876996,-223.445646,0.00035616,31]
[400315399,1767355877009,-1558.61,0.00035616,2]
[400315400,1767355877018,-1000.0,0.00035679,10]
[400315401,1767355877029,-1000.0,0.00035679,10]
[400315402,1767355877039,-1197.0,0.00035681,11]
[400315403,1767355877051,-210.92639266,0.000357,120]
[400315404,1767355877060,-222.01088128,0.000357,120]
[400315405,1767355877070,-202.5435977,0.000357,120]
[400315406,1767355877081,-216.80181212,0.000357,120]
[400315407,1767355877090,-197.46450333,0.000357,120]
[400315408,1767355877100,-273.55878687,0.000357,120]
[400315409,1767355877110,-211.96337928,0.000357,120]
[400315410,1767355877119,-152.0,0.00035713,29]
[400315411,1767355877128,-1000.0,0.00035816,10]
[400315412,1767355877138,-1000.0,0.00035816,10]
[400315413,1767355877148,-1000.0,0.00035953,10]
[400315414,1767355877158,-1000.0,0.00035953,10]
[400315415,1767355877168,-424.5,0.00035971,30]
[400315416,1767355877177,-10808.3865135,0.00036,2]
[400315417,1767355877187,-177585.86550311,0.00036,2]
[400315418,1767355877197,-75019.75864504,0.00036,2]
[400315419,1767355877206,-56010.03369241,0.00036,2]
[400315420,1767355877216,-277.16438568,0.00036,2]
[400315421,1767355877226,-12966.92,0.00036,2]
[400315422,1767355877235,-5000.0,0.00036003,2]
[400315423,1767355877244,-5000.0,0.00036013,2]
[400315424,1767355877254,-25000.0,0.00036027,2]
[400315425,1767355877263,-5000.0,0.00036038,2]
[400315426,1767355877272,-5000.0,0.00036039,2]
[400315427,1767355877282,-4797.0,0.00036045,2]
[400315428,1767355877292,-5000.0,0.00036048,2]
[400315429,1767355877302,-218.33,0.00036049,30]
[400315430,1767355877312,-5000.0,0.00036076,2]
[400315431,1767355877322,-5000.0,0.00036077,2]
[400315432,1767355877332,-1000.0,0.0003609,10]
[400315433,1767355877341,-1000.0,0.0003609,10]
[400315434,1767355877352,-3643.48,0.00036101,2]
[400315435,1767355877362,-152.0,0.00036116,30]
[400315436,1767355877372,-182.52354566,0.00036116,5]
[400315437,1767355877382,-5000.0,0.0003612,2]
[400315438,1767355877392,-5000.0,0.00036191,2]
[400315439,1767355877403,-2558.0,0.0003621,2]
[400315440,1767355877413,-1507.82,0.00036212,2]
[400315441,1767355877423,-1197.0,0.00036214,11]
[400315442,1767355877432,-5000.0,0.00036215,2]
[400315443,1767355877442,-5000.0,0.00036223,2]
[400315444,1767355877452,-1000.0,0.00036227,10]
[400315445,1767355877462,-1000.0,0.00036227,10]
[400315446,1767355877471,-5000.0,0.00036234,2]